[Event "Titled Tuesday Blitz October 5 2021"]
[White "Di Nicolantonio, Lucas"]
[Black "Le, Tuan Minh"]
[WhiteFideId "680460"]
[BlackFideId "12401153"]
[WhiteElo "2381"]
[BlackElo "2450"]
[Result "0-1"]
[Round "02"]
[TimeControl "180+1"]
[Date "2021.10.05"]
[WhiteClock "0:00:05"]
[BlackClock "0:00:44"]

1. Nf3 {[%clk 0:03:00]}  d5 {[%clk 0:03:00]} 2. e3 {[%clk 0:03:00]}  Nf6 {[%clk 0:03:00]} 3. c4 {[%clk 0:03:00]}  c6 {[%clk 0:03:00]} 4. Nc3 {[%clk 0:03:00]}  a6 {[%clk 0:03:01]} 5. b3 {[%clk 0:02:57]}  Bg4 {[%clk 0:03:01]} 6. h3 {[%clk 0:02:54]}  Bh5 {[%clk 0:03:00]} 7. Bb2 {[%clk 0:02:54]}  e6 {[%clk 0:02:56]} 8. g4 {[%clk 0:02:46]}  Bg6 {[%clk 0:02:56]} 9. Ne5 {[%clk 0:02:45]}  Bd6 {[%clk 0:02:54]} 10. Nxg6 {[%clk 0:02:36]}  hxg6 {[%clk 0:02:55]} 11. Bg2 {[%clk 0:02:34]}  Nbd7 {[%clk 0:02:52]} 12. Qc2 {[%clk 0:02:28]}  g5 {[%clk 0:02:34]} 13. Ne2 {[%clk 0:02:23]}  Qe7 {[%clk 0:02:32]} 14. Ng3 {[%clk 0:02:14]}  Ne5 {[%clk 0:02:10]} 15. d4 {[%clk 0:01:45]}  Ng6 {[%clk 0:02:09]} 16. O-O-O {[%clk 0:01:27]}  Ba3 {[%clk 0:02:03]} 17. Kb1 {[%clk 0:01:26]}  Bxb2 {[%clk 0:02:01]} 18. Qxb2 {[%clk 0:01:22]}  a5 {[%clk 0:02:01]} 19. c5 {[%clk 0:01:13]}  a4 {[%clk 0:01:48]} 20. b4 {[%clk 0:01:13]}  a3 {[%clk 0:01:49]} 21. Qb3 {[%clk 0:01:12]}  Nh4 {[%clk 0:01:48]} 22. Bf1 {[%clk 0:01:09]}  e5 {[%clk 0:01:45]} 23. Bd3 {[%clk 0:01:02]}  e4 {[%clk 0:01:45]} 24. Bc2 {[%clk 0:01:01]}  g6 {[%clk 0:01:45]} 25. Nf1 {[%clk 0:00:49]}  Kf8 {[%clk 0:01:45]} 26. Nd2 {[%clk 0:00:49]}  Kg7 {[%clk 0:01:45]} 27. Rdf1 {[%clk 0:00:43]}  Rhe8 {[%clk 0:01:29]} 28. f3 {[%clk 0:00:43]}  exf3 {[%clk 0:01:24]} 29. Nxf3 {[%clk 0:00:43]}  Qxe3 {[%clk 0:01:22]} 30. Qxe3 {[%clk 0:00:39]}  Rxe3 {[%clk 0:01:23]} 31. Nxg5 {[%clk 0:00:36]}  Rae8 {[%clk 0:01:23]} 32. Kc1 {[%clk 0:00:20]}  R8e7 {[%clk 0:01:21]} 33. Rh2 {[%clk 0:00:16]}  Re1+ {[%clk 0:01:11]} 34. Rxe1 {[%clk 0:00:16]}  Rxe1+ {[%clk 0:01:12]} 35. Kd2 {[%clk 0:00:16]}  Ra1 {[%clk 0:01:13]} 36. Bb3 {[%clk 0:00:15]}  Nh7 {[%clk 0:01:09]} 37. Nxh7 {[%clk 0:00:05]}  Nf3+ {[%clk 0:01:09]} 38. Ke3 {[%clk 0:00:05]}  Nxh2 {[%clk 0:01:10]} 39. Ng5 {[%clk 0:00:05]}  Rb1 {[%clk 0:01:05]} 40. Bc2 {[%clk 0:00:03]}  Rb2 {[%clk 0:01:05]} 41. Kd2 {[%clk 0:00:02]}  Rxa2 {[%clk 0:01:04]} 42. Kc3 {[%clk 0:00:03]}  Rb2 {[%clk 0:01:02]} 43. Bb3 {[%clk 0:00:03]}  Kf6 {[%clk 0:00:59]} 44. Nh7+ {[%clk 0:00:03]}  Ke7 {[%clk 0:01:00]} 45. Ng5 {[%clk 0:00:04]}  f6 {[%clk 0:01:00]} 46. Nh7 {[%clk 0:00:04]}  Nf3 {[%clk 0:00:59]} 47. g5 {[%clk 0:00:04]}  Nxg5 {[%clk 0:00:55]} 48. Nxg5 {[%clk 0:00:05]}  fxg5 {[%clk 0:00:56]} 49. b5 {[%clk 0:00:06]}  Kf6 {[%clk 0:00:54]} 50. b6 {[%clk 0:00:05]}  Rh2 {[%clk 0:00:44]} 51. Kb4 {[%clk 0:00:06]}  a2 {[%clk 0:00:45]} 52. Bxd5 {[%clk 0:00:05]}  a1=Q {[%clk 0:00:44]} 0-1


[Site "https://www.chess.com"]

[Event "Titled Tuesday Blitz October 5 2021"]
[White "Dzhaparov, Medet"]
[Black "Ivanisevic, Ivan"]
[WhiteFideId "13803689"]
[BlackFideId "912417"]
[WhiteElo "1702"]
[BlackElo "2499"]
[Result "0-1"]
[Round "02"]
[TimeControl "180+1"]
[Date "2021.10.05"]
[WhiteClock "0:00:05"]
[BlackClock "0:00:37"]

1. d4 {[%clk 0:03:00]}  Nf6 {[%clk 0:01:34]} 2. c4 {[%clk 0:02:59]}  g6 {[%clk 0:01:35]} 3. Nf3 {[%clk 0:02:59]}  Bg7 {[%clk 0:01:35]} 4. g3 {[%clk 0:03:00]}  d6 {[%clk 0:01:36]} 5. Bg2 {[%clk 0:02:59]}  c6 {[%clk 0:01:36]} 6. O-O {[%clk 0:02:59]}  Qa5 {[%clk 0:01:36]} 7. Nc3 {[%clk 0:02:55]}  Qh5 {[%clk 0:01:37]} 8. Bg5 {[%clk 0:02:30]}  O-O {[%clk 0:01:35]} 9. Qb3 {[%clk 0:02:16]}  Nbd7 {[%clk 0:01:34]} 10. Rad1 {[%clk 0:02:12]}  h6 {[%clk 0:01:34]} 11. Bc1 {[%clk 0:02:05]}  g5 {[%clk 0:01:34]} 12. e4 {[%clk 0:02:02]}  a5 {[%clk 0:01:32]} 13. Qc2 {[%clk 0:01:43]}  e5 {[%clk 0:01:32]} 14. h3 {[%clk 0:01:35]}  Re8 {[%clk 0:01:31]} 15. g4 {[%clk 0:01:30]}  Qg6 {[%clk 0:01:31]} 16. Be3 {[%clk 0:01:29]}  h5 {[%clk 0:01:30]} 17. Nh2 {[%clk 0:00:52]}  exd4 {[%clk 0:01:29]} 18. Bxd4 {[%clk 0:00:51]}  Ne5 {[%clk 0:01:30]} 19. Bxe5 {[%clk 0:00:43]}  dxe5 {[%clk 0:01:31]} 20. f3 {[%clk 0:00:40]}  Bf8 {[%clk 0:01:31]} 21. Kh1 {[%clk 0:00:34]}  Be6 {[%clk 0:01:30]} 22. Na4 {[%clk 0:00:31]}  Rad8 {[%clk 0:01:27]} 23. b3 {[%clk 0:00:29]}  Bb4 {[%clk 0:01:24]} 24. Rxd8 {[%clk 0:00:25]}  Rxd8 {[%clk 0:01:24]} 25. Rd1 {[%clk 0:00:26]}  Re8 {[%clk 0:01:18]} 26. Nf1 {[%clk 0:00:23]}  hxg4 {[%clk 0:01:15]} 27. hxg4 {[%clk 0:00:22]}  Qh6+ {[%clk 0:01:14]} 28. Kg1 {[%clk 0:00:22]}  Nd7 {[%clk 0:01:12]} 29. Ng3 {[%clk 0:00:19]}  Nc5 {[%clk 0:01:04]} 30. Nb2 {[%clk 0:00:19]}  a4 {[%clk 0:00:55]} 31. Nf5 {[%clk 0:00:17]}  Bxf5 {[%clk 0:00:51]} 32. exf5 {[%clk 0:00:18]}  Qh4 {[%clk 0:00:48]} 33. Nd3 {[%clk 0:00:09]}  Nxd3 {[%clk 0:00:47]} 34. Rxd3 {[%clk 0:00:10]}  axb3 {[%clk 0:00:45]} 35. axb3 {[%clk 0:00:10]}  e4 {[%clk 0:00:45]} 36. fxe4 {[%clk 0:00:10]}  Qe1+ {[%clk 0:00:43]} 37. Kh2 {[%clk 0:00:09]}  Qh4+ {[%clk 0:00:39]} 38. Rh3 {[%clk 0:00:09]}  Bd6+ {[%clk 0:00:38]} 39. Kg1 {[%clk 0:00:04]}  Qe1+ {[%clk 0:00:38]} 40. Bf1 {[%clk 0:00:05]}  Rxe4 {[%clk 0:00:37]} 0-1


[Site "https://www.chess.com"]

[Event "Titled Tuesday Blitz October 5 2021"]
[White "Erdogmus, Yagiz Kaan"]
[Black "Cardoso Cardoso, Jose Gabriel"]
[WhiteFideId "44599790"]
[BlackFideId "4430492"]
[WhiteElo "1783"]
[BlackElo "2343"]
[Result "0-1"]
[Round "02"]
[TimeControl "180+1"]
[Date "2021.10.05"]
[WhiteClock "0:00:08"]
[BlackClock "0:00:16"]

1. e4 {[%clk 0:02:22]}  g6 {[%clk 0:02:58]} 2. d4 {[%clk 0:02:21]}  c6 {[%clk 0:02:59]} 3. Nc3 {[%clk 0:02:19]}  d5 {[%clk 0:02:59]} 4. Nf3 {[%clk 0:02:19]}  dxe4 {[%clk 0:02:59]} 5. Nxe4 {[%clk 0:02:20]}  Nf6 {[%clk 0:03:00]} 6. Nxf6+ {[%clk 0:02:19]}  exf6 {[%clk 0:03:01]} 7. Be3 {[%clk 0:02:19]}  Bg7 {[%clk 0:03:00]} 8. Qd2 {[%clk 0:02:20]}  O-O {[%clk 0:03:01]} 9. O-O-O {[%clk 0:02:18]}  Be6 {[%clk 0:03:01]} 10. Kb1 {[%clk 0:02:18]}  b5 {[%clk 0:03:01]} 11. h4 {[%clk 0:02:16]}  h5 {[%clk 0:03:00]} 12. Bd3 {[%clk 0:02:11]}  a5 {[%clk 0:02:58]} 13. Bh6 {[%clk 0:02:09]}  a4 {[%clk 0:02:56]} 14. Rhe1 {[%clk 0:02:07]}  Re8 {[%clk 0:02:55]} 15. Bxg7 {[%clk 0:02:06]}  Kxg7 {[%clk 0:02:55]} 16. Be4 {[%clk 0:01:59]}  Qd6 {[%clk 0:02:50]} 17. a3 {[%clk 0:01:54]}  Bg4 {[%clk 0:02:38]} 18. Qb4 {[%clk 0:01:46]}  Qxb4 {[%clk 0:02:33]} 19. axb4 {[%clk 0:01:47]}  f5 {[%clk 0:02:34]} 20. Bd3 {[%clk 0:01:46]}  Na6 {[%clk 0:02:33]} 21. c3 {[%clk 0:01:44]}  Nc7 {[%clk 0:02:33]} 22. Be2 {[%clk 0:01:43]}  Nd5 {[%clk 0:02:32]} 23. Ng1 {[%clk 0:01:41]}  Nf4 {[%clk 0:02:30]} 24. f3 {[%clk 0:01:33]}  Nxg2 {[%clk 0:02:24]} 25. fxg4 {[%clk 0:01:32]}  Nxe1 {[%clk 0:02:24]} 26. Rxe1 {[%clk 0:01:30]}  fxg4 {[%clk 0:02:21]} 27. Kc2 {[%clk 0:01:29]}  f5 {[%clk 0:02:20]} 28. Rf1 {[%clk 0:01:28]}  Re3 {[%clk 0:02:17]} 29. Kd2 {[%clk 0:01:26]}  Rae8 {[%clk 0:02:16]} 30. Bd3 {[%clk 0:01:26]}  Rg3 {[%clk 0:02:15]} 31. Ne2 {[%clk 0:01:26]}  Rg2 {[%clk 0:02:13]} 32. d5 {[%clk 0:01:26]}  cxd5 {[%clk 0:02:05]} 33. Bxb5 {[%clk 0:01:26]}  Re7 {[%clk 0:02:05]} 34. Bd3 {[%clk 0:01:17]}  g5 {[%clk 0:01:59]} 35. Rxf5 {[%clk 0:01:11]}  gxh4 {[%clk 0:01:58]} 36. Rg5+ {[%clk 0:01:08]}  Kf6 {[%clk 0:01:53]} 37. Rf5+ {[%clk 0:01:03]}  Kg7 {[%clk 0:01:45]} 38. Rg5+ {[%clk 0:01:03]}  Kf8 {[%clk 0:01:42]} 39. Rxh5 {[%clk 0:01:02]}  h3 {[%clk 0:01:43]} 40. Rh8+ {[%clk 0:00:56]}  Kf7 {[%clk 0:01:42]} 41. Rh7+ {[%clk 0:00:56]}  Ke8 {[%clk 0:01:41]} 42. Rh8+ {[%clk 0:00:55]}  Kd7 {[%clk 0:01:39]} 43. b5 {[%clk 0:00:50]}  h2 {[%clk 0:01:29]} 44. b6 {[%clk 0:00:48]}  Kc6 {[%clk 0:01:24]} 45. Rh6+ {[%clk 0:00:48]}  Kb7 {[%clk 0:01:23]} 46. Bb5 {[%clk 0:00:48]}  Rf2 {[%clk 0:00:44]} 47. Bc6+ {[%clk 0:00:39]}  Kxb6 {[%clk 0:00:43]} 48. Bd7+ {[%clk 0:00:39]}  Kc7 {[%clk 0:00:40]} 49. Bxg4 {[%clk 0:00:39]}  Re4 {[%clk 0:00:40]} 50. Rh7+ {[%clk 0:00:38]}  Kd6 {[%clk 0:00:38]} 51. Rh6+ {[%clk 0:00:33]}  Kc5 {[%clk 0:00:35]} 52. Ke1 {[%clk 0:00:29]}  Rg2 {[%clk 0:00:25]} 53. Bf3 {[%clk 0:00:12]}  Rexe2+ {[%clk 0:00:25]} 54. Bxe2 {[%clk 0:00:12]}  Rg1+ {[%clk 0:00:25]} 55. Kf2 {[%clk 0:00:12]}  h1=Q {[%clk 0:00:26]} 56. Rxh1 {[%clk 0:00:12]}  Rxh1 {[%clk 0:00:27]} 57. Bd3 {[%clk 0:00:12]}  Ra1 {[%clk 0:00:22]} 58. Ke3 {[%clk 0:00:12]}  Ra2 {[%clk 0:00:20]} 59. Bc2 {[%clk 0:00:10]}  a3 {[%clk 0:00:20]} 60. b4+ {[%clk 0:00:09]}  Kd6 {[%clk 0:00:21]} 61. Kd2 {[%clk 0:00:09]}  Ra1 {[%clk 0:00:18]} 62. Bb3 {[%clk 0:00:09]}  Rh1 {[%clk 0:00:17]} 63. Kc2 {[%clk 0:00:05]}  Rh2+ {[%clk 0:00:17]} 64. Kc1 {[%clk 0:00:05]}  a2 {[%clk 0:00:16]} 65. Bxa2 {[%clk 0:00:04]}  Rxa2 {[%clk 0:00:15]} 66. Kb1 {[%clk 0:00:05]}  Rf2 {[%clk 0:00:15]} 67. Kc1 {[%clk 0:00:04]}  Kc6 {[%clk 0:00:15]} 68. Kd1 {[%clk 0:00:05]}  Kb5 {[%clk 0:00:16]} 69. Ke1 {[%clk 0:00:06]}  Ra2 {[%clk 0:00:15]} 70. Kd1 {[%clk 0:00:06]}  Kc4 {[%clk 0:00:15]} 71. Kc1 {[%clk 0:00:07]}  Kxc3 {[%clk 0:00:16]} 72. b5 {[%clk 0:00:08]}  Ra1# {[%clk 0:00:16]} 0-1


[Site "https://www.chess.com"]

[Event "Titled Tuesday Blitz October 5 2021"]
[White "Girinath, P.D.S."]
[Black "Goncalves, Ivan Mesquita V"]
[WhiteFideId "5000572"]
[BlackFideId "2114224"]
[WhiteElo "2333"]
[BlackElo "2299"]
[Result "1-0"]
[Round "02"]
[TimeControl "180+1"]
[Date "2021.10.05"]
[WhiteClock "0:00:12"]
[BlackClock "0:00:13"]

1. e4 {[%clk 0:02:59]}  c5 {[%clk 0:02:59]} 2. Nf3 {[%clk 0:02:57]}  e6 {[%clk 0:02:59]} 3. d3 {[%clk 0:02:56]}  b6 {[%clk 0:02:59]} 4. g3 {[%clk 0:02:56]}  Bb7 {[%clk 0:03:00]} 5. Bg2 {[%clk 0:02:57]}  d6 {[%clk 0:03:00]} 6. O-O {[%clk 0:02:57]}  Nd7 {[%clk 0:03:00]} 7. Re1 {[%clk 0:02:58]}  Qc7 {[%clk 0:03:00]} 8. c3 {[%clk 0:02:58]}  Ngf6 {[%clk 0:02:59]} 9. a4 {[%clk 0:02:50]}  a6 {[%clk 0:02:56]} 10. Na3 {[%clk 0:02:47]}  Be7 {[%clk 0:02:53]} 11. Nc4 {[%clk 0:02:30]}  O-O {[%clk 0:02:44]} 12. e5 {[%clk 0:02:24]}  dxe5 {[%clk 0:02:40]} 13. Nfxe5 {[%clk 0:02:25]}  Bxg2 {[%clk 0:02:32]} 14. Kxg2 {[%clk 0:02:26]}  b5 {[%clk 0:02:22]} 15. axb5 {[%clk 0:02:20]}  axb5 {[%clk 0:02:21]} 16. Rxa8 {[%clk 0:02:20]}  Rxa8 {[%clk 0:02:21]} 17. Qf3 {[%clk 0:02:13]}  Rc8 {[%clk 0:02:12]} 18. Nxd7 {[%clk 0:02:06]}  Nxd7 {[%clk 0:02:07]} 19. Bf4 {[%clk 0:02:01]}  Qa7 {[%clk 0:02:00]} 20. Ne5 {[%clk 0:01:42]}  Nxe5 {[%clk 0:01:43]} 21. Bxe5 {[%clk 0:01:43]}  Bf8 {[%clk 0:01:38]} 22. h4 {[%clk 0:01:02]}  Qa2 {[%clk 0:01:22]} 23. Qb7 {[%clk 0:00:51]}  Qa8 {[%clk 0:01:21]} 24. Qxa8 {[%clk 0:00:50]}  Rxa8 {[%clk 0:01:22]} 25. d4 {[%clk 0:00:43]}  c4 {[%clk 0:01:19]} 26. Bf4 {[%clk 0:00:41]}  Ra2 {[%clk 0:01:13]} 27. Bc1 {[%clk 0:00:35]}  h5 {[%clk 0:00:55]} 28. Re5 {[%clk 0:00:32]}  Ra1 {[%clk 0:00:55]} 29. Be3 {[%clk 0:00:29]}  b4 {[%clk 0:00:53]} 30. Rb5 {[%clk 0:00:21]}  bxc3 {[%clk 0:00:28]} 31. bxc3 {[%clk 0:00:22]}  f6 {[%clk 0:00:24]} 32. Rb8 {[%clk 0:00:18]}  Ra3 {[%clk 0:00:19]} 33. d5 {[%clk 0:00:17]}  Rb3 {[%clk 0:00:10]} 34. Rc8 {[%clk 0:00:12]}  Kf7 {[%clk 0:00:05]} 35. dxe6+ {[%clk 0:00:11]}  Kxe6 {[%clk 0:00:04]} 36. Rxf8 {[%clk 0:00:10]}  Rxc3 {[%clk 0:00:04]} 37. Rg8 {[%clk 0:00:08]}  Kf7 {[%clk 0:00:04]} 38. Rc8 {[%clk 0:00:08]}  Rc2 {[%clk 0:00:04]} 39. Rc7+ {[%clk 0:00:07]}  Kg6 {[%clk 0:00:04]} 40. Kf3 {[%clk 0:00:08]}  Kh7 {[%clk 0:00:03]} 41. Ke4 {[%clk 0:00:08]}  Kg6 {[%clk 0:00:04]} 42. Kd4 {[%clk 0:00:06]}  Ra2 {[%clk 0:00:03]} 43. Rxc4 {[%clk 0:00:06]}  Kf5 {[%clk 0:00:04]} 44. Kd3 {[%clk 0:00:03]}  Ra3+ {[%clk 0:00:03]} 45. Ke2 {[%clk 0:00:04]}  Ra2+ {[%clk 0:00:04]} 46. Kf3 {[%clk 0:00:04]}  Kg6 {[%clk 0:00:05]} 47. Rc5 {[%clk 0:00:04]}  Ra4 {[%clk 0:00:05]} 48. Kg2 {[%clk 0:00:04]}  Rb4 {[%clk 0:00:05]} 49. Rc7 {[%clk 0:00:04]}  Ra4 {[%clk 0:00:05]} 50. Bc5 {[%clk 0:00:04]}  Rc4 {[%clk 0:00:05]} 51. Bd6 {[%clk 0:00:05]}  Rd4 {[%clk 0:00:05]} 52. Bf8 {[%clk 0:00:05]}  Kf5 {[%clk 0:00:04]} 53. Rxg7 {[%clk 0:00:04]}  Rd5 {[%clk 0:00:04]} 54. Be7 {[%clk 0:00:04]}  Re5 {[%clk 0:00:04]} 55. Bd6 {[%clk 0:00:04]}  Re6 {[%clk 0:00:04]} 56. Bf4 {[%clk 0:00:04]}  Re4 {[%clk 0:00:04]} 57. Rh7 {[%clk 0:00:04]}  Kg6 {[%clk 0:00:04]} 58. Rh6+ {[%clk 0:00:05]}  Kf5 {[%clk 0:00:04]} 59. Rxh5+ {[%clk 0:00:05]}  Ke6 {[%clk 0:00:04]} 60. Rh8 {[%clk 0:00:06]}  Ra4 {[%clk 0:00:04]} 61. h5 {[%clk 0:00:07]}  Kf5 {[%clk 0:00:04]} 62. h6 {[%clk 0:00:07]}  Kg6 {[%clk 0:00:05]} 63. Rg8+ {[%clk 0:00:07]}  Kh7 {[%clk 0:00:05]} 64. Rg7+ {[%clk 0:00:08]}  Kh8 {[%clk 0:00:05]} 65. Rf7 {[%clk 0:00:08]}  Ra6 {[%clk 0:00:05]} 66. Re7 {[%clk 0:00:07]}  f5 {[%clk 0:00:04]} 67. Rf7 {[%clk 0:00:07]}  Kg8 {[%clk 0:00:04]} 68. Rg7+ {[%clk 0:00:07]}  Kh8 {[%clk 0:00:04]} 69. Be5 {[%clk 0:00:07]}  Rxh6 {[%clk 0:00:05]} 70. Rg6+ {[%clk 0:00:07]}  Kh7 {[%clk 0:00:05]} 71. Rxh6+ {[%clk 0:00:07]}  Kxh6 {[%clk 0:00:06]} 72. Kf3 {[%clk 0:00:08]}  Kg6 {[%clk 0:00:07]} 73. Kf4 {[%clk 0:00:08]}  Kh5 {[%clk 0:00:08]} 74. Kxf5 {[%clk 0:00:08]}  Kh6 {[%clk 0:00:08]} 75. g4 {[%clk 0:00:09]}  Kh7 {[%clk 0:00:08]} 76. g5 {[%clk 0:00:09]}  Kg8 {[%clk 0:00:09]} 77. g6 {[%clk 0:00:10]}  Kf8 {[%clk 0:00:09]} 78. Kf6 {[%clk 0:00:10]}  Kg8 {[%clk 0:00:10]} 79. Kg5 {[%clk 0:00:10]}  Kf8 {[%clk 0:00:11]} 80. Kh6 {[%clk 0:00:10]}  Kg8 {[%clk 0:00:11]} 81. f4 {[%clk 0:00:11]}  Kf8 {[%clk 0:00:12]} 82. f5 {[%clk 0:00:11]}  Kg8 {[%clk 0:00:12]} 83. Bd6 {[%clk 0:00:10]}  Kh8 {[%clk 0:00:12]} 84. f6 {[%clk 0:00:11]}  Kg8 {[%clk 0:00:13]} 85. f7+ {[%clk 0:00:11]}  Kh8 {[%clk 0:00:13]} 86. g7# {[%clk 0:00:12]} 1-0


[Site "https://www.chess.com"]

[Event "Titled Tuesday Blitz October 5 2021"]
[White "Gokerkan, Cem Kaan"]
[Black "Dounis, Alexandros"]
[WhiteFideId "6336760"]
[BlackFideId "4213238"]
[WhiteElo "2382"]
[BlackElo "2195"]
[Result "0-1"]
[Round "02"]
[TimeControl "180+1"]
[Date "2021.10.05"]
[WhiteClock "0:00:04"]
[BlackClock "0:00:13"]

1. d4 {[%clk 0:03:00]}  Nf6 {[%clk 0:02:58]} 2. Nf3 {[%clk 0:02:59]}  g6 {[%clk 0:02:56]} 3. c4 {[%clk 0:02:58]}  Bg7 {[%clk 0:02:55]} 4. g3 {[%clk 0:02:57]}  O-O {[%clk 0:02:55]} 5. Bg2 {[%clk 0:02:58]}  d5 {[%clk 0:02:55]} 6. cxd5 {[%clk 0:02:54]}  Nxd5 {[%clk 0:02:56]} 7. O-O {[%clk 0:02:52]}  Nc6 {[%clk 0:02:56]} 8. e4 {[%clk 0:02:47]}  Nb6 {[%clk 0:02:56]} 9. d5 {[%clk 0:02:47]}  Na5 {[%clk 0:02:56]} 10. Nc3 {[%clk 0:02:42]}  c6 {[%clk 0:02:54]} 11. Nd4 {[%clk 0:02:25]}  e6 {[%clk 0:02:53]} 12. b3 {[%clk 0:01:58]}  cxd5 {[%clk 0:02:51]} 13. exd5 {[%clk 0:01:57]}  Nxd5 {[%clk 0:02:46]} 14. Nxd5 {[%clk 0:01:55]}  exd5 {[%clk 0:02:46]} 15. Ba3 {[%clk 0:01:54]}  Re8 {[%clk 0:02:45]} 16. Rc1 {[%clk 0:01:53]}  Bd7 {[%clk 0:02:37]} 17. Rc5 {[%clk 0:01:34]}  Nc6 {[%clk 0:02:31]} 18. Nb5 {[%clk 0:01:27]}  d4 {[%clk 0:02:16]} 19. Nd6 {[%clk 0:01:17]}  Re6 {[%clk 0:02:05]} 20. Rd5 {[%clk 0:01:07]}  Qc7 {[%clk 0:01:52]} 21. Bh3 {[%clk 0:00:59]}  a6 {[%clk 0:01:20]} 22. Qf3 {[%clk 0:00:42]}  Re7 {[%clk 0:01:11]} 23. Bxd7 {[%clk 0:00:17]}  Rxd7 {[%clk 0:01:11]} 24. Nc4 {[%clk 0:00:09]}  Rxd5 {[%clk 0:01:04]} 25. Qxd5 {[%clk 0:00:10]}  Rd8 {[%clk 0:01:03]} 26. Qe4 {[%clk 0:00:08]}  h6 {[%clk 0:00:48]} 27. Rd1 {[%clk 0:00:08]}  b5 {[%clk 0:00:41]} 28. Nd2 {[%clk 0:00:07]}  Ne7 {[%clk 0:00:19]} 29. Nf3 {[%clk 0:00:07]}  Nf5 {[%clk 0:00:19]} 30. g4 {[%clk 0:00:07]}  Nd6 {[%clk 0:00:17]} 31. Qf4 {[%clk 0:00:07]}  Ne8 {[%clk 0:00:16]} 32. Qd2 {[%clk 0:00:03]}  d3 {[%clk 0:00:15]} 33. Bb4 {[%clk 0:00:02]}  Qd7 {[%clk 0:00:15]} 34. h3 {[%clk 0:00:02]}  Nc7 {[%clk 0:00:15]} 35. Kg2 {[%clk 0:00:03]}  Ne6 {[%clk 0:00:16]} 36. Ba5 {[%clk 0:00:03]}  Rc8 {[%clk 0:00:16]} 37. Qe3 {[%clk 0:00:03]}  Qc6 {[%clk 0:00:16]} 38. Kg1 {[%clk 0:00:02]}  g5 {[%clk 0:00:16]} 39. Rd2 {[%clk 0:00:03]}  Nf4 {[%clk 0:00:16]} 40. Bb4 {[%clk 0:00:02]}  Nxh3+ {[%clk 0:00:15]} 41. Kh2 {[%clk 0:00:03]}  Nf4 {[%clk 0:00:16]} 42. Be7 {[%clk 0:00:02]}  Re8 {[%clk 0:00:16]} 43. Nd4 {[%clk 0:00:01]}  Qd7 {[%clk 0:00:16]} 44. Nf5 {[%clk 0:00:01]}  Nd5 {[%clk 0:00:14]} 45. Qe4 {[%clk 0:00:01]}  Nxe7 {[%clk 0:00:13]} 46. Nxe7+ {[%clk 0:00:01]}  Rxe7 {[%clk 0:00:13]} 47. Qa8+ {[%clk 0:00:02]}  Kh7 {[%clk 0:00:13]} 48. Qf3 {[%clk 0:00:03]}  Qc7+ {[%clk 0:00:13]} 49. Kg2 {[%clk 0:00:03]}  Rd7 {[%clk 0:00:14]} 50. Qf5+ {[%clk 0:00:03]}  Kh8 {[%clk 0:00:13]} 51. Kg1 {[%clk 0:00:04]}  Qf4 {[%clk 0:00:13]} 52. Qxd7 {[%clk 0:00:04]}  Qxd2 {[%clk 0:00:14]} 53. Qe8+ {[%clk 0:00:04]}  Kh7 {[%clk 0:00:13]} 54. Qe4+ {[%clk 0:00:05]}  Kg8 {[%clk 0:00:13]} 55. Qe8+ {[%clk 0:00:04]}  Bf8 {[%clk 0:00:13]} 56. Qe4 {[%clk 0:00:04]}  Qe2 {[%clk 0:00:13]} 0-1


[Site "https://www.chess.com"]

[Event "Titled Tuesday Blitz October 5 2021"]
[White "Gombocz, Ferenc Jr."]
[Black "Pert, Richard G"]
[WhiteFideId "775029"]
[BlackFideId "404748"]
[WhiteElo "1913"]
[BlackElo "2441"]
[Result "0-1"]
[Round "02"]
[TimeControl "180+1"]
[Date "2021.10.05"]
[WhiteClock "0:00:04"]
[BlackClock "0:01:02"]

1. c4 {[%clk 0:03:00]}  e6 {[%clk 0:02:58]} 2. g3 {[%clk 0:03:00]}  d5 {[%clk 0:02:58]} 3. Bg2 {[%clk 0:03:00]}  dxc4 {[%clk 0:02:56]} 4. Qa4+ {[%clk 0:02:59]}  Nd7 {[%clk 0:02:56]} 5. Qxc4 {[%clk 0:03:00]}  a6 {[%clk 0:02:56]} 6. Qc2 {[%clk 0:02:53]}  Ngf6 {[%clk 0:02:53]} 7. Nc3 {[%clk 0:02:53]}  Bd6 {[%clk 0:02:50]} 8. Nf3 {[%clk 0:02:53]}  e5 {[%clk 0:02:49]} 9. O-O {[%clk 0:02:52]}  O-O {[%clk 0:02:48]} 10. d4 {[%clk 0:02:50]}  Re8 {[%clk 0:02:43]} 11. dxe5 {[%clk 0:02:46]}  Nxe5 {[%clk 0:02:43]} 12. Nxe5 {[%clk 0:02:45]}  Bxe5 {[%clk 0:02:43]} 13. Rd1 {[%clk 0:02:44]}  Qe7 {[%clk 0:02:42]} 14. Bg5 {[%clk 0:02:39]}  c6 {[%clk 0:02:40]} 15. Ne4 {[%clk 0:02:31]}  h6 {[%clk 0:02:37]} 16. Nxf6+ {[%clk 0:02:25]}  Bxf6 {[%clk 0:02:37]} 17. Bxf6 {[%clk 0:02:25]}  Qxf6 {[%clk 0:02:37]} 18. e3 {[%clk 0:02:20]}  Be6 {[%clk 0:02:25]} 19. Rd2 {[%clk 0:02:14]}  Rad8 {[%clk 0:02:21]} 20. Rad1 {[%clk 0:02:06]}  Rxd2 {[%clk 0:02:19]} 21. Rxd2 {[%clk 0:02:06]}  Rd8 {[%clk 0:02:11]} 22. Rxd8+ {[%clk 0:02:04]}  Qxd8 {[%clk 0:02:11]} 23. b3 {[%clk 0:02:03]}  a5 {[%clk 0:02:09]} 24. Bf3 {[%clk 0:02:00]}  Qd6 {[%clk 0:02:07]} 25. Qd1 {[%clk 0:01:57]}  Qxd1+ {[%clk 0:02:00]} 26. Bxd1 {[%clk 0:01:56]}  Kf8 {[%clk 0:02:00]} 27. Kf1 {[%clk 0:01:52]}  Ke7 {[%clk 0:02:00]} 28. Ke2 {[%clk 0:01:53]}  Kd6 {[%clk 0:02:00]} 29. Kd3 {[%clk 0:01:52]}  Kc5 {[%clk 0:02:00]} 30. Kc3 {[%clk 0:01:52]}  b5 {[%clk 0:01:59]} 31. a3 {[%clk 0:01:47]}  b4+ {[%clk 0:01:57]} 32. axb4+ {[%clk 0:01:46]}  axb4+ {[%clk 0:01:58]} 33. Kd3 {[%clk 0:01:46]}  g5 {[%clk 0:01:47]} 34. f4 {[%clk 0:01:30]}  f6 {[%clk 0:01:41]} 35. e4 {[%clk 0:01:28]}  Kd6 {[%clk 0:01:38]} 36. h4 {[%clk 0:01:05]}  c5 {[%clk 0:01:35]} 37. Bc2 {[%clk 0:00:48]}  Bg8 {[%clk 0:01:33]} 38. Bd1 {[%clk 0:00:44]}  Kc6 {[%clk 0:01:21]} 39. Kc2 {[%clk 0:00:23]}  c4 {[%clk 0:01:18]} 40. bxc4 {[%clk 0:00:22]}  Bxc4 {[%clk 0:01:19]} 41. Bf3 {[%clk 0:00:17]}  Kc5 {[%clk 0:01:16]} 42. hxg5 {[%clk 0:00:14]}  hxg5 {[%clk 0:01:15]} 43. fxg5 {[%clk 0:00:09]}  fxg5 {[%clk 0:01:14]} 44. Kb2 {[%clk 0:00:08]}  Kd4 {[%clk 0:01:14]} 45. Bh1 {[%clk 0:00:07]}  Ke3 {[%clk 0:01:13]} 46. Bg2 {[%clk 0:00:04]}  Kf2 {[%clk 0:01:13]} 47. Bh3 {[%clk 0:00:03]}  Kxg3 {[%clk 0:01:12]} 48. Bd7 {[%clk 0:00:03]}  Kf4 {[%clk 0:01:11]} 49. Bc6 {[%clk 0:00:02]}  g4 {[%clk 0:01:06]} 50. Bb7 {[%clk 0:00:02]}  Ke5 {[%clk 0:01:05]} 51. Bc8 {[%clk 0:00:01]}  g3 {[%clk 0:01:04]} 52. Bh3 {[%clk 0:00:01]}  Kxe4 {[%clk 0:01:03]} 53. Bg2+ {[%clk 0:00:02]}  Ke3 {[%clk 0:01:03]} 54. Bc6 {[%clk 0:00:01]}  Kf2 {[%clk 0:01:03]} 55. Bb7 {[%clk 0:00:01]}  g2 {[%clk 0:01:02]} 56. Bxg2 {[%clk 0:00:01]}  Kxg2 {[%clk 0:01:03]} 57. Kc2 {[%clk 0:00:01]}  Kf3 {[%clk 0:01:03]} 58. Kb2 {[%clk 0:00:02]}  Ke3 {[%clk 0:01:03]} 59. Kc2 {[%clk 0:00:02]}  Kd4 {[%clk 0:01:03]} 60. Kb2 {[%clk 0:00:03]}  b3 {[%clk 0:01:02]} 61. Kc1 {[%clk 0:00:03]}  Kc3 {[%clk 0:01:02]} 62. Kb1 {[%clk 0:00:03]}  Bd3+ {[%clk 0:01:02]} 63. Ka1 {[%clk 0:00:04]}  b2+ {[%clk 0:01:02]} 0-1


[Site "https://www.chess.com"]